bitfinex-derivatives/quotes_BTCF0:USTF0_20241005
["timestamp","ask_amount","ask_price","bid_price","bid_amount"]
[1728115207866,0.001,62114.0,62110.0,0.057348]
[1728115208564,0.001,62114.0,62110.0,0.056348]
[1728115208764,0.002,62114.0,62110.0,0.056348]
[1728115211671,0.002,62114.0,62108.0,0.39413]
[1728115211672,0.002,62114.0,62113.0,0.417146]
[1728115211887,0.0037,62117.0,62116.0,0.056343]
[1728115212076,0.0037,62120.0,62116.0,0.056343]
[1728115212267,0.0037,62123.0,62117.0,0.16986769]
[1728115212576,0.0037,62123.0,62121.0,0.09658676]
[1728115212764,0.68626,62124.0,62122.0,0.11348704]
[1728115212765,0.6853,62124.0,62122.0,0.11348704]
[1728115212967,0.3608,62124.0,62123.0,0.11348704]
[1728115213163,0.3608,62124.0,62123.0,0.24855761]
[1728115213576,0.3608,62124.0,62123.0,0.11348704]
[1728115213972,0.3648,62124.0,62123.0,0.11348704]
[1728115214872,0.004,62124.0,62123.0,0.11348704]
[1728115215264,0.004,62124.0,62123.0,0.20997577]
[1728115215474,0.005,62124.0,62123.0,0.20997577]
[1728115215669,0.01,62124.0,62123.0,0.20997577]
[1728115216276,0.01,62124.0,62123.0,0.11348704]
[1728115223278,0.01,62124.0,62123.0,0.11308133]
[1728115228072,0.01,62124.0,62123.0,0.11307077]
[1728115232980,0.01,62124.0,62121.0,0.09648873]
[1728115233186,0.01,62124.0,62122.0,0.11311687]
[1728115233385,0.01,62124.0,62123.0,0.11311687]
[1728115234090,0.005,62124.0,62123.0,0.11311687]
[1728115234284,0.008,62124.0,62123.0,0.11311687]
[1728115234488,0.006,62124.0,62123.0,0.11311687]
[1728115234985,0.005,62124.0,62123.0,0.11311687]
[1728115235290,0.01,62124.0,62123.0,0.11311687]
[1728115236381,0.01,62124.0,62123.0,0.11564687]
[1728115237893,0.01,62124.0,62123.0,0.11577563]
[1728115240383,0.01,62124.0,62123.0,0.25088603]
[1728115240592,0.01,62124.0,62123.0,0.25097983]
[1728115242192,0.01,62124.0,62123.0,0.25110883]
[1728115242983,0.01,62124.0,62123.0,0.25115929]
[1728115247988,0.01,62124.0,62123.0,0.35109238]
[1728115257605,0.01,62124.0,62123.0,0.35116871]
[1728115261211,0.01,62124.0,62123.0,0.40750571]
[1728115265523,0.166336,62124.0,62123.0,0.11596205]
[1728115265722,0.066336,62124.0,62123.0,0.21257103]
[1728115265932,0.066336,62124.0,62123.0,0.21259097]
[1728115268536,0.01,62124.0,62123.0,0.11598199]
[1728115269634,0.066336,62124.0,62123.0,0.11598199]
[1728115270634,0.066336,62124.0,62123.0,0.11336636]
[1728115277139,0.066336,62124.0,62123.0,0.20997534]
[1728115279334,0.066336,62124.0,62123.0,0.11336636]
[1728115280643,0.066336,62124.0,62123.0,0.11334417]
[1728115283439,0.01,62124.0,62123.0,0.16968117]
[1728115284045,0.01,62124.0,62123.0,0.26627724]
[1728115284843,0.01,62124.0,62123.0,0.26880724]
[1728115285347,0.01,62124.0,62123.0,0.26859156]
[1728115286744,0.01,62124.0,62123.0,0.17199549]
[1728115286933,0.01,62124.0,62123.0,0.26859156]
[1728115287139,0.01,62124.0,62123.0,0.20279549]
[1728115290041,0.01,62124.0,62123.0,0.20275212]
[1728115290241,0.01,62124.0,62123.0,0.33754513]
[1728115291147,0.024,62126.0,62123.0,0.64200813]
[1728115291439,0.024,62126.0,62125.0,0.156335]
[1728115291646,0.024,62126.0,62125.0,0.40421313]
[1728115292845,0.0113,62129.0,62125.0,0.40421313]
[1728115292846,0.0113,62129.0,62125.0,0.21308512]
[1728115293144,0.0037,62131.0,62130.0,0.05633]
[1728115293346,0.056323,62139.0,62134.0,0.056327]
[1728115293347,0.0038,62135.0,62134.0,0.056327]
[1728115293542,0.060023,62139.0,62134.0,0.26941212]
[1728115293543,0.071323,62139.0,62134.0,0.26941212]
[1728115293744,0.071323,62139.0,62138.0,0.1]
[1728115293950,0.056323,62139.0,62138.0,0.1]
[1728115295251,0.056323,62139.0,62138.0,0.101]
[1728115295252,0.070323,62139.0,62138.0,0.101]
[1728115295453,0.070323,62139.0,62138.0,0.102]
[1728115295454,0.084323,62139.0,62138.0,0.102]
[1728115296445,0.084323,62139.0,62138.0,0.16629869]
[1728115298447,0.084323,62139.0,62138.0,0.102]
[1728115298644,0.084323,62139.0,62138.0,0.22262169]
[1728115299149,0.084323,62139.0,62138.0,0.22260432]
[1728115299839,0.084323,62139.0,62138.0,0.250062]
[1728115300050,0.084323,62139.0,62138.0,0.18578827]
[1728115300349,0.084323,62139.0,62138.0,0.25006217]
[1728115300548,0.084323,62139.0,62138.0,0.18578827]
[1728115302446,0.028,62139.0,62138.0,0.18578827]
[1728115312868,0.128,62139.0,62138.0,0.02946527]
[1728115314671,0.184322,62139.0,62138.0,0.02946527]
[1728115317870,0.084322,62139.0,62138.0,0.02946527]
[1728115319673,0.084322,62139.0,62138.0,0.22210733]
[1728115320379,0.028,62139.0,62138.0,0.14180603]
[1728115320570,0.028,62139.0,62138.0,0.19812903]
[1728115320776,0.028,62139.0,62138.0,0.19814346]
[1728115321687,0.028,62139.0,62138.0,0.14182046]
[1728115321889,0.084322,62139.0,62138.0,0.14182046]
[1728115322079,0.117122,62139.0,62138.0,0.14182046]
[1728115328386,0.117122,62139.0,62138.0,0.23818202]
[1728115330092,0.117122,62139.0,62138.0,0.23834907]
[1728115332993,0.117122,62139.0,62138.0,0.23836599]
[1728115334294,0.117122,62139.0,62138.0,0.24089599]
[1728115341092,0.084322,62139.0,62138.0,0.24089599]
[1728115342387,0.084322,62139.0,62138.0,0.14453443]
[1728115344902,0.084322,62139.0,62138.0,0.25722369]
[1728115345195,0.084322,62139.0,62138.0,0.14468453]
[1728115349203,0.084322,62139.0,62138.0,0.24468453]
[1728115349701,0.084322,62139.0,62138.0,0.24460382]
[1728115349890,0.084322,62139.0,62138.0,0.30092682]
[1728115351494,0.084322,62139.0,62138.0,0.397536]
[1728115354395,0.028,62139.0,62138.0,0.397536]
[1728115354705,0.028,62139.0,62138.0,0.43508328]
[1728115358195,0.028,62139.0,62138.0,0.30092682]
[1728115361500,0.028,62139.0,62138.0,0.43509604]
[1728115366610,0.028,62139.0,62138.0,0.43507041]
[1728115367516,0.028,62139.0,62138.0,0.30092682]
[1728115368617,0.028,62139.0,62138.0,0.29839682]
[1728115369314,0.028,62139.0,62138.0,0.2983203]
[1728115371011,0.028,62139.0,62138.0,0.29831867]
[1728115374221,0.028,62139.0,62138.0,0.29831984]
[1728115375420,0.028,62139.0,62138.0,0.43246613]
[1728115376017,0.028,62139.0,62138.0,0.29831984]
[1728115376413,0.028,62139.0,62138.0,0.43249112]
[1728115379225,0.028,62139.0,62138.0,0.43222995]
[1728115382424,0.028,62139.0,62138.0,0.18578827]
[1728115382622,0.028,62139.0,62138.0,0.43243648]
[1728115383320,0.028,62139.0,62138.0,0.43496648]
[1728115383720,0.028,62139.0,62138.0,0.32245081]
[1728115383919,0.028,62139.0,62138.0,0.43498173]
[1728115387417,0.028,62139.0,62138.0,0.43500528]
[1728115388423,0.028,62139.0,62138.0,0.43500539]
[1728115398130,0.028,62139.0,62138.0,0.30085998]
[1728115399641,0.084322,62139.0,62138.0,0.30085998]
[1728115402340,0.084322,62139.0,62138.0,0.30086569]
[1728115405237,0.084322,62139.0,62138.0,0.43503363]
[1728115417743,0.084322,62139.0,62138.0,0.43250363]
[1728115420751,0.084322,62139.0,62138.0,0.29833569]
[1728115421145,0.084322,62139.0,62138.0,0.18578827]
[1728115421350,0.084322,62139.0,62138.0,0.29836922]
[1728115421540,0.084322,62139.0,62138.0,0.43256689]
[1728115422150,0.084322,62139.0,62138.0,0.43257149]
[1728115422943,0.084322,62139.0,62138.0,0.29837382]
[1728115423147,0.084322,62139.0,62138.0,0.43257303]
[1728115427055,0.084322,62139.0,62138.0,0.43260201]
[1728115430055,0.028,62139.0,62138.0,0.43260201]
[1728115432150,0.028,62139.0,62138.0,0.43513994]
[1728115436976,0.028,62139.0,62138.0,0.43513776]
[1728115440177,0.028,62139.0,62138.0,0.27881476]
[1728115440369,0.084322,62139.0,62138.0,0.27881476]
[1728115440575,0.084322,62139.0,62138.0,0.14459737]
[1728115441076,0.084322,62139.0,62138.0,0.14462845]
[1728115443075,0.084322,62139.0,62138.0,0.24122835]
[1728115443581,0.084322,62139.0,62138.0,0.24122453]
[1728115445281,0.028,62139.0,62138.0,0.29754753]
[1728115445478,0.028,62139.0,62138.0,0.29753324]
[1728115447785,0.028,62139.0,62138.0,0.20093716]
[1728115449480,0.028,62139.0,62138.0,0.29753324]
[1728115450586,0.028,62139.0,62138.0,0.20093716]
[1728115450885,0.028,62139.0,62138.0,0.29753324]
[1728115451378,0.028,62139.0,62138.0,0.20093716]
[1728115453779,0.028,62139.0,62138.0,0.20091538]
[1728115455183,0.028,62139.0,62138.0,0.20091377]
[1728115458392,0.028,62139.0,62138.0,0.33510113]
[1728115460283,0.028,62139.0,62138.0,0.33507691]
[1728115466999,0.028,62139.0,62138.0,0.33254691]
[1728115474907,0.028,62139.0,62138.0,0.3325333]
[1728115479510,0.028,62139.0,62138.0,0.4325333]
[1728115481309,0.028,62139.0,62138.0,0.4350633]
[1728115489815,0.028,62139.0,62138.0,0.43496565]
[1728115491309,0.028,62139.0,62138.0,0.4349806]
[1728115492608,0.0038,62143.0,62138.0,0.4349806]
[1728115492912,0.0038,62143.0,62142.0,0.1]
[1728115493114,0.056318,62144.0,62142.0,0.2125304]
[1728115493313,0.056318,62144.0,62143.0,0.20911842]
[1728115494418,0.070318,62144.0,62143.0,0.20911842]
[1728115494913,0.070318,62144.0,62143.0,0.20893858]
[1728115495412,0.079318,62144.0,62143.0,0.20993858]
[1728115496613,0.079318,62144.0,62143.0,0.11335056]
[1728115499810,0.079318,62144.0,62143.0,0.11334451]
[1728115503221,0.079318,62144.0,62143.0,0.2257582]
[1728115503415,0.079318,62144.0,62143.0,0.19390828]
[1728115508127,0.079318,62144.0,62143.0,0.1938777]
[1728115510433,0.079318,62144.0,62143.0,0.08149459]
[1728115511738,0.079318,62144.0,62143.0,0.001]
[1728115515029,0.440118,62144.0,62143.0,0.001]
[1728115517044,0.440118,62144.0,62143.0,0.06536007]
[1728115519246,0.440118,62144.0,62143.0,0.001]
[1728115519442,0.440118,62144.0,62143.0,0.06536007]
[1728115519745,0.440118,62144.0,62143.0,0.001]
[1728115521343,0.440118,62144.0,62143.0,0.06536007]
[1728115523342,0.440118,62144.0,62143.0,0.001]
[1728115524950,0.079318,62144.0,62143.0,0.001]
[1728115525242,0.440118,62144.0,62143.0,0.001]
[1728115526242,0.079318,62144.0,62143.0,0.001]
[1728115526642,0.440118,62144.0,62143.0,0.001]
[1728115529754,0.440118,62144.0,62143.0,0.00353]
[1728115531546,0.079318,62144.0,62143.0,0.00353]
[1728115531752,0.440118,62144.0,62143.0,0.00353]
[1728115541363,0.440118,62144.0,62143.0,0.08402459]
[1728115542258,0.440118,62144.0,62143.0,0.00353]
[1728115544458,0.079318,62144.0,62143.0,0.00353]
[1728115550259,0.079318,62144.0,62143.0,0.08402459]
[1728115553953,0.079318,62144.0,62143.0,0.19645459]
[1728115554367,0.079318,62144.0,62143.0,0.08402459]
[1728115555363,0.079318,62144.0,62143.0,0.00353]
[1728115555967,0.079318,62144.0,62143.0,0.08402459]
[1728115557065,0.079318,62144.0,62143.0,0.19646635]
[1728115557660,0.079318,62144.0,62143.0,0.19644966]
[1728115558856,0.079318,62144.0,62143.0,0.08402459]
[1728115561173,0.079318,62144.0,62143.0,0.25277338]
[1728115561871,0.079318,62144.0,62143.0,0.17227879]
[1728115562276,0.079318,62144.0,62143.0,0.25278934]
[1728115564865,0.079318,62144.0,62143.0,0.25025934]
[1728115570974,0.079318,62144.0,62143.0,0.19390976]
[1728115571277,0.079318,62144.0,62143.0,0.08151055]
[1728115571475,0.079318,62144.0,62143.0,0.19392673]
[1728115571669,0.079318,62144.0,62143.0,0.08151055]
[1728115571869,0.079318,62144.0,62143.0,0.001]
[1728115573971,0.179318,62144.0,62143.0,0.001]
[1728115579983,0.179318,62144.0,62143.0,0.00353]
[1728115581182,0.540118,62144.0,62143.0,0.00353]
[1728115584593,0.179318,62144.0,62143.0,0.00353]
[1728115584779,0.540118,62144.0,62143.0,0.00353]
[1728115585679,0.179318,62144.0,62143.0,0.00353]
[1728115585877,0.540118,62144.0,62143.0,0.00353]
[1728115586187,0.179318,62144.0,62143.0,0.00353]
[1728115586389,0.540118,62144.0,62143.0,0.00353]
[1728115587091,0.179318,62144.0,62143.0,0.00353]
[1728115587587,0.540118,62144.0,62143.0,0.00353]
[1728115589489,0.179318,62144.0,62143.0,0.00353]
[1728115589685,0.540118,62144.0,62143.0,0.00353]
[1728115589890,0.179318,62144.0,62143.0,0.00353]
[1728115590388,0.540118,62144.0,62143.0,0.00353]
[1728115590580,0.179318,62144.0,62143.0,0.00353]
[1728115590785,0.540118,62144.0,62143.0,0.00353]
[1728115591590,0.179318,62144.0,62143.0,0.00353]
[1728115591784,0.540118,62144.0,62143.0,0.00353]
[1728115592492,0.179318,62144.0,62143.0,0.00353]
[1728115593085,0.540118,62144.0,62143.0,0.00353]
[1728115594597,0.179318,62144.0,62143.0,0.00353]
[1728115594787,0.540118,62144.0,62143.0,0.00353]
[1728115614008,0.440118,62144.0,62143.0,0.001]
[1728115614207,0.540118,62144.0,62143.0,0.001]
[1728115614601,0.179318,62144.0,62143.0,0.001]
[1728115615002,0.540118,62144.0,62143.0,0.001]
[1728115616301,0.179318,62144.0,62143.0,0.001]
[1728115616908,0.540118,62144.0,62143.0,0.001]
[1728115617299,0.179318,62144.0,62143.0,0.001]
[1728115617504,0.540118,62144.0,62143.0,0.001]
[1728115618806,0.179318,62144.0,62143.0,0.001]
[1728115619003,0.540118,62144.0,62143.0,0.001]
[1728115620001,0.179318,62144.0,62143.0,0.001]
[1728115620204,0.540118,62144.0,62143.0,0.001]
[1728115620404,0.179318,62144.0,62143.0,0.001]
[1728115620609,0.540118,62144.0,62143.0,0.001]
[1728115620907,0.179318,62144.0,62143.0,0.001]
[1728115621309,0.540118,62144.0,62143.0,0.001]
[1728115623015,0.179318,62144.0,62143.0,0.001]
[1728115623502,0.540118,62144.0,62143.0,0.001]
[1728115623905,0.179318,62144.0,62143.0,0.001]
[1728115624402,0.540118,62144.0,62143.0,0.001]
[1728115626403,0.179318,62144.0,62143.0,0.001]
[1728115626598,0.540118,62144.0,62143.0,0.001]
[1728115628207,0.540118,62144.0,62143.0,0.00353]
[1728115628409,0.179318,62144.0,62143.0,0.00353]
[1728115628712,0.540118,62144.0,62143.0,0.00353]
[1728115629708,0.179318,62144.0,62143.0,0.00353]
[1728115629907,0.540118,62144.0,62143.0,0.00353]
[1728115634612,0.179318,62144.0,62143.0,0.00353]
[1728115634819,0.540118,62144.0,62143.0,0.00353]
[1728115636615,0.440118,62144.0,62143.0,0.00353]
[1728115636815,0.0038,62148.0,62143.0,1.29908588]
[1728115637007,0.0075,62151.0,62150.0,0.056312]
[1728115637206,0.060009,62154.0,62150.0,0.056312]
[1728115637207,0.056309,62154.0,62151.0,0.05631]
[1728115637417,0.056309,62154.0,62153.0,0.1]
[1728115639524,0.057309,62154.0,62153.0,0.101]
[1728115639718,0.057309,62154.0,62153.0,0.102]
[1728115641515,0.057309,62154.0,62153.0,0.16623938]
[1728115642813,0.057309,62154.0,62153.0,0.06623938]
[1728115643517,0.057309,62154.0,62153.0,0.0283079]
[1728115658828,0.057309,62154.0,62153.0,0.07646796]
[1728115659531,0.057309,62154.0,62153.0,0.0283079]
[1728115662434,0.057309,62154.0,62153.0,0.09254728]
[1728115663533,0.057309,62154.0,62153.0,0.0283079]
[1728115666436,0.057309,62154.0,62153.0,0.14070495]
[1728115667235,0.157309,62154.0,62153.0,0.24070495]
[1728115669337,0.157309,62154.0,62153.0,0.14070495]
[1728115671838,0.157309,62154.0,62153.0,0.1407161]
[1728115672938,0.057309,62154.0,62153.0,0.1407161]
[1728115676144,0.057309,62154.0,62153.0,0.1432461]
[1728115676943,0.157309,62154.0,62153.0,0.14324673]
[1728115681445,0.057309,62154.0,62153.0,0.14324673]
[1728115685244,0.057309,62154.0,62153.0,0.14308486]
[1728115690239,0.057309,62154.0,62153.0,0.14309748]
[1728115690444,0.057309,62154.0,62153.0,0.1430977]
[1728115691741,0.001,62154.0,62153.0,0.1994067]
[1728115691947,0.001,62154.0,62153.0,0.65679708]
[1728115692151,0.001,62154.0,62153.0,0.69379026]
[1728115692450,0.001,62154.0,62153.0,0.69378193]
[1728115693040,0.001,62154.0,62153.0,0.69278193]
[1728115693352,0.001,62154.0,62153.0,0.69378193]
[1728115693652,0.063804,62159.0,62156.0,0.056306]
[1728115693949,0.063804,62159.0,62158.0,0.1]
[1728115693950,0.056304,62159.0,62158.0,0.1]
[1728115694150,0.056304,62159.0,62158.0,0.2122598]
[1728115694352,0.056304,62159.0,62158.0,0.1]
[1728115694751,0.057304,62159.0,62158.0,0.1]
[1728115695260,0.057304,62159.0,62158.0,0.101]
[1728115695948,0.001,62159.0,62158.0,0.34975912]
[1728115696245,0.001,62159.0,62158.0,0.26931452]
[1728115697051,0.001,62159.0,62158.0,0.27031452]
[1728115697251,0.001,62159.0,62158.0,0.84940821]
[1728115698059,0.001,62159.0,62158.0,0.36676821]
[1728115698245,0.001,62159.0,62158.0,0.27031452]
[1728115699454,0.001,62159.0,62158.0,0.36672162]
[1728115699656,0.001,62159.0,62158.0,0.2547121]
[1728115699857,0.001,62159.0,62158.0,0.3665866]
[1728115700458,0.001,62159.0,62158.0,0.2701795]
[1728115700654,0.001,62159.0,62158.0,0.3665866]
[1728115700856,0.001,62159.0,62158.0,0.2701795]
[1728115701154,0.001,62159.0,62158.0,0.3665866]
[1728115701359,0.001,62159.0,62158.0,0.2701795]
[1728115701658,0.001,62159.0,62158.0,0.7528195]
[1728115701859,0.001,62159.0,62158.0,0.2701795]
[1728115703059,0.001,62159.0,62158.0,1.3528195]
[1728115703960,0.0038,62163.0,62162.0,0.056301]
[1728115704154,0.0038,62166.0,62165.0,0.056298]
[1728115704453,0.3608,62169.0,62166.0,0.056297]
[1728115704658,0.056296,62168.0,62167.0,0.06421536]
[1728115704853,0.056296,62168.0,62167.0,0.16421536]
[1728115705363,0.056296,62168.0,62167.0,0.1]
[1728115706653,0.057296,62168.0,62167.0,0.101]
[1728115707055,0.057296,62168.0,62167.0,0.102]
[1728115709759,0.057296,62168.0,62167.0,0.158297]
[1728115712555,0.057296,62168.0,62167.0,0.058297]
[1728115712853,0.057296,62168.0,62166.0,0.09176924]
[1728115712854,0.001,62168.0,62166.0,0.04814505]
[1728115713051,0.001,62168.0,62165.0,0.04814505]
[1728115713052,0.056298,62166.0,62165.0,0.04814505]
[1728115713253,0.056298,62166.0,62164.0,0.05944505]
[1728115713254,0.056298,62165.0,62164.0,0.05944505]
[1728115713653,0.056298,62165.0,62164.0,0.0113]
[1728115713862,0.156298,62165.0,62164.0,0.0113]
[1728115714457,0.156298,62165.0,62164.0,0.03841007]
[1728115714660,0.156298,62165.0,62164.0,0.0123]
[1728115714964,0.157298,62165.0,62164.0,0.0133]
[1728115716262,0.157298,62165.0,62164.0,0.06144505]
[1728115716667,0.157298,62165.0,62164.0,0.0133]
[1728115718466,0.157298,62165.0,62164.0,0.04034714]
[1728115718665,0.157298,62165.0,62164.0,0.0133]
[1728115719271,0.157298,62165.0,62164.0,0.06144505]
[1728115721360,0.157298,62165.0,62164.0,0.0133]
[1728115721761,0.157298,62165.0,62164.0,0.04079019]
[1728115721968,0.157298,62165.0,62164.0,0.0133]
[1728115723870,0.157298,62165.0,62164.0,0.0633]
[1728115725063,0.518098,62165.0,62164.0,0.09049697]
[1728115726164,0.157298,62165.0,62164.0,0.09049697]
[1728115726362,0.518098,62165.0,62164.0,0.09049697]
[1728115727263,0.157298,62165.0,62164.0,0.09049697]
[1728115727464,0.518098,62165.0,62164.0,0.09049697]
[1728115729276,0.518098,62165.0,62164.0,0.15471233]
[1728115729666,0.157298,62165.0,62164.0,0.15471233]
[1728115729875,0.518098,62165.0,62164.0,0.15471233]
[1728115730480,0.157298,62165.0,62164.0,0.15471233]
[1728115730790,0.518098,62165.0,62164.0,0.15471233]
[1728115733175,0.157298,62165.0,62164.0,0.15471233]
[1728115733372,0.518098,62165.0,62164.0,0.15471233]
[1728115735268,0.157298,62165.0,62164.0,0.15471233]
[1728115735474,0.518098,62165.0,62164.0,0.15471233]
[1728115735878,0.157298,62165.0,62164.0,0.15471233]
[1728115736086,0.518098,62165.0,62164.0,0.15471233]
[1728115736267,0.157298,62165.0,62164.0,0.09049697]
[1728115736473,0.518098,62165.0,62164.0,0.09049697]
[1728115737172,0.157298,62165.0,62164.0,0.09049697]
[1728115740866,0.157298,62165.0,62164.0,0.04049697]
[1728115743370,0.157298,62165.0,62164.0,0.1207758]
[1728115743576,0.157298,62165.0,62164.0,0.23279205]
[1728115745271,0.001,62165.0,62164.0,0.20881222]
[1728115745488,0.001,62165.0,62164.0,0.28926026]
[1728115745981,0.001,62165.0,62164.0,0.20881222]
[1728115746182,0.001,62165.0,62164.0,0.28925984]
[1728115746679,0.001,62165.0,62164.0,0.20881222]
[1728115747374,0.001,62165.0,62164.0,0.28918174]
[1728115747577,0.001,62165.0,62164.0,0.20874111]
[1728115749387,0.001,62165.0,62164.0,0.28917725]
[1728115749888,0.001,62165.0,62164.0,0.20874111]
[1728115751288,0.001,62165.0,62164.0,0.2891745]
[1728115753879,0.001,62165.0,62164.0,0.28917712]
[1728115755088,0.101,62165.0,62164.0,0.28917712]
[1728115757283,0.101,62165.0,62164.0,0.28918764]
[1728115757991,0.157298,62165.0,62164.0,0.28918764]
[1728115764909,0.157298,62165.0,62164.0,0.23288864]
[1728115766797,0.001,62165.0,62164.0,0.23288864]
[1728115767107,0.001,62165.0,62164.0,0.15245525]
[1728115767295,0.001,62165.0,62164.0,0.15247121]
[1728115768396,0.101,62165.0,62164.0,0.23957021]
[1728115773405,0.101,62165.0,62164.0,0.24210021]
[1728115777307,0.101,62165.0,62164.0,0.24210659]
[1728115784116,0.001,62165.0,62164.0,0.24210659]
[1728115792123,0.001,62165.0,62164.0,0.24181439]
[1728115798927,0.001,62165.0,62164.0,0.33837463]
[1728115800915,0.001,62165.0,62164.0,0.33833299]
[1728115801422,0.001,62165.0,62164.0,0.24177275]
[1728115803922,0.157298,62165.0,62164.0,0.21097275]
[1728115804125,0.157298,62165.0,62164.0,0.15467375]
[1728115807627,0.157298,62165.0,62164.0,0.15214375]
[1728115812428,0.157298,62165.0,62164.0,0.20214375]
[1728115814232,0.057298,62165.0,62164.0,0.20214375]
[1728115817142,0.057298,62165.0,62164.0,0.25844275]
[1728115821843,0.057298,62165.0,62164.0,0.26097275]
[1728115824549,0.001,62165.0,62164.0,0.36097275]
[1728115830353,0.001,62165.0,62164.0,0.26097275]
[1728115836249,0.057298,62165.0,62164.0,0.26097275]
[1728115836551,0.057298,62165.0,62164.0,0.20467375]
[1728115839654,0.057298,62165.0,62164.0,0.28514758]
[1728115839847,0.057298,62165.0,62164.0,0.1735008]
[1728115840149,0.057298,62165.0,62164.0,0.28505651]
[1728115841055,0.057298,62165.0,62164.0,0.20458268]
[1728115843151,0.418098,62165.0,62164.0,0.20458268]
[1728115844951,0.418098,62165.0,62164.0,0.20453547]
[1728115848761,0.057298,62165.0,62164.0,0.20453547]
[1728115849061,0.418098,62165.0,62164.0,0.20453547]
[1728115849560,0.057298,62165.0,62164.0,0.20453547]
[1728115849862,0.418098,62165.0,62164.0,0.20453547]
[1728115852261,0.418098,62165.0,62164.0,0.20451312]
[1728115853563,0.418098,62165.0,62164.0,0.2849835]
[1728115854960,0.418098,62165.0,62164.0,0.28502626]
[1728115855358,0.44453787,62165.0,62164.0,0.28502626]
[1728115855562,0.44453787,62165.0,62164.0,0.28249626]
[1728115856664,0.44453787,62165.0,62164.0,0.25529929]
[1728115863470,0.44453787,62165.0,62164.0,0.25530126]
[1728115863659,0.44453787,62165.0,62164.0,0.14377038]
[1728115864671,0.44453787,62165.0,62164.0,0.0633]
[1728115864672,0.92713787,62165.0,62164.0,0.0633]
[1728115864860,0.056302,62161.0,62160.0,0.08417551]
[1728115865064,0.056308,62154.0,62153.0,0.10026024]
[1728115865365,0.156308,62154.0,62149.0,0.09656024]
[1728115865566,0.056309,62153.0,62152.0,0.11181352]
[1728115865763,0.05631,62152.0,62151.0,0.00241281]
[1728115867164,0.05831,62152.0,62151.0,0.00241281]
[1728115870078,0.51911,62152.0,62151.0,0.00241281]
[1728115870977,0.54615767,62152.0,62151.0,0.00241281]
[1728115871375,0.54615767,62152.0,62151.0,0.0505811]
[1728115872170,0.54615767,62152.0,62151.0,0.00241281]
[1728115872376,0.54615767,62152.0,62151.0,0.05057093]
[1728115874470,0.54615767,62152.0,62151.0,0.00241281]
[1728115880268,0.51911,62152.0,62151.0,0.00241281]
[1728115882672,0.51911,62152.0,62151.0,0.05057093]
[1728115882874,0.54597893,62152.0,62151.0,0.05057093]
[1728115883471,0.54597893,62152.0,62151.0,0.00241281]
[1728115883874,0.54597893,62152.0,62151.0,0.05054004]
[1728115884679,0.75046893,62152.0,62146.0,0.0037]
[1728115884877,0.75046893,62152.0,62145.0,0.13075036]
[1728115884878,0.056315,62148.0,62145.0,0.13075036]
[1728115885081,0.1,62149.0,62145.0,0.12705036]
[1728115885280,0.056316,62147.0,62145.0,0.02705036]
[1728115885484,0.056316,62147.0,62144.0,0.056317]
[1728115886280,0.056316,62146.0,62144.0,0.056317]
[1728115887174,0.156316,62146.0,62145.0,0.001]
[1728115888585,0.168316,62146.0,62144.0,0.002]
[1728115888783,0.177316,62146.0,62145.0,0.001]
[1728115889176,0.177316,62146.0,62145.0,0.002]
[1728115889480,0.077316,62146.0,62145.0,0.002]
[1728115889782,0.077316,62146.0,62145.0,0.001]
[1728115890370,0.077316,62146.0,62145.0,0.002]
[1728115890574,0.072316,62146.0,62145.0,0.001]
[1728115891175,0.433116,62146.0,62145.0,0.001]
[1728115891375,0.433116,62146.0,62145.0,0.002]
[1728115892780,0.072316,62146.0,62145.0,0.002]
[1728115892984,0.433116,62146.0,62145.0,0.002]
[1728115893892,0.072316,62146.0,62145.0,0.002]
[1728115894275,0.433116,62146.0,62145.0,0.002]
[1728115894478,0.072316,62146.0,62145.0,0.002]
[1728115894681,0.433116,62146.0,62145.0,0.002]
[1728115899096,0.072316,62146.0,62145.0,0.002]
[1728115899291,0.433116,62146.0,62145.0,0.002]
[1728115902397,0.072316,62146.0,62145.0,0.002]
[1728115902894,0.433116,62146.0,62145.0,0.002]
[1728115903096,0.072316,62146.0,62145.0,0.002]
[1728115903295,0.433116,62146.0,62145.0,0.002]
[1728115905903,0.072316,62146.0,62145.0,0.002]
[1728115906090,0.433116,62146.0,62145.0,0.002]
[1728115915999,0.072316,62146.0,62145.0,0.002]
[1728115916189,0.433116,62146.0,62145.0,0.002]
[1728115916601,0.072316,62146.0,62145.0,0.002]
[1728115917097,0.433116,62146.0,62145.0,0.002]
[1728115918305,0.533116,62146.0,62145.0,0.002]
[1728115919594,0.172316,62146.0,62145.0,0.002]
[1728115919799,0.533116,62146.0,62145.0,0.002]
[1728115922096,0.533116,62146.0,62145.0,0.00453]
[1728115925002,0.172316,62146.0,62145.0,0.00453]
[1728115925198,0.533116,62146.0,62145.0,0.00453]
[1728115925914,0.172316,62146.0,62145.0,0.00453]
[1728115926211,0.533116,62146.0,62145.0,0.00453]
[1728115928014,0.172316,62146.0,62145.0,0.00453]
[1728115928212,0.533116,62146.0,62145.0,0.06888455]
[1728115928922,0.172316,62146.0,62145.0,0.06888455]
[1728115929123,0.533116,62146.0,62145.0,0.06888455]
[1728115932927,0.533116,62146.0,62145.0,0.00453]
[1728115933230,0.533116,62146.0,62145.0,0.06888455]
[1728115933420,0.533116,62146.0,62145.0,0.00453]
[1728115933730,0.172316,62146.0,62145.0,0.00453]
[1728115933927,0.533116,62146.0,62145.0,0.00453]
[1728115934232,0.172316,62146.0,62145.0,0.00453]
[1728115934530,0.533116,62146.0,62145.0,0.00453]